lending/lending_fUSD_20240621
["ID","MTS","AMOUNT","RATE_DAILY","PERIOD"]
[330102553,1718991077239,-500.0,0.00023824,4]
[330102554,1718991077249,-500.0,0.00023824,4]
[330102555,1718991077258,-500.0,0.00023824,4]
[330102556,1718991077275,-500.0,0.00023824,4]
[330102557,1718991077283,-500.0,0.00023824,4]
[330102558,1718991077293,-500.0,0.00023824,4]
[330102559,1718991077302,-753.57,0.00023824,4]
[330102560,1718991077310,-500.0,0.00023824,4]
[330102561,1718991077321,-854.73,0.00023824,4]
[330102562,1718991077330,-553.24,0.00023824,4]
[330102563,1718991077339,-500.0,0.00023824,4]
[330102564,1718991077348,-500.0,0.00023824,4]
[330102565,1718991077357,-500.0,0.00023824,4]
[330102566,1718991077366,-508.41,0.00023824,4]
[330102567,1718991077374,-500.0,0.00023824,4]
[330102568,1718991077383,-158.58193799,0.00023824,4]
[330102569,1718991077391,-631.37,0.00023824,4]
[330102570,1718991077400,-500.0,0.00023824,4]
[330102571,1718991077410,-500.0,0.00023824,4]
[330102572,1718991077419,-500.0,0.00023824,4]
[330102573,1718991077429,-500.0,0.00023824,4]
[330102574,1718991077438,-772.45,0.00023824,4]
[330102575,1718991077447,-500.0,0.00023824,4]
[330102576,1718991077456,-500.0,0.00023824,4]
[330102577,1718991077466,-500.0,0.00023824,4]
[330102578,1718991077475,-500.0,0.00023824,4]
[330102579,1718991077484,-500.0,0.00023824,2]
[330102580,1718991077495,-500.0,0.00023824,4]
[330102581,1718991077507,-500.0,0.00023824,4]
[330102582,1718991077527,-500.0,0.00023824,4]
[330102583,1718991077535,-271.02292677,0.00023824,4]
[330102584,1718991077546,-500.0,0.00023824,4]
[330102585,1718991077555,-500.0,0.00023824,4]
[330102586,1718991077563,-1474.02,0.00023824,4]
[330102587,1718991077572,-500.0,0.00023824,4]
[330102588,1718991077582,-567.86,0.00023824,4]
[330102589,1718991077591,-500.0,0.00023824,4]
[330102590,1718991077601,-1769.35,0.00023824,4]
[330102591,1718991077611,-500.0,0.00023824,4]
[330102592,1718991077620,-500.0,0.00023824,4]
[330102593,1718991077629,-1112.63,0.00023824,4]
[330102594,1718991077638,-569.56,0.00023824,4]
[330102595,1718991077647,-500.0,0.00023824,4]
[330102596,1718991077657,-500.0,0.00023824,4]
[330102597,1718991077666,-500.0,0.00023824,4]
[330102598,1718991077676,-500.0,0.00023824,4]
[330102599,1718991077685,-500.0,0.00023824,4]
[330102600,1718991077694,-758.73,0.00023824,4]
[330102601,1718991077703,-594.05,0.00023824,4]
[330102602,1718991077712,-1059.07,0.00023824,4]
[330102603,1718991077721,-500.0,0.00023824,4]
[330102604,1718991077731,-500.0,0.00023824,4]
[330102605,1718991077740,-965.65,0.00023824,4]
[330102606,1718991077749,-500.0,0.00023824,4]
[330102607,1718991077758,-906.33,0.00023824,4]
[330102608,1718991077774,-923.38,0.00023824,4]
[330102609,1718991077783,-1038.94,0.00023824,4]
[330102610,1718991077793,-2621.17,0.00023824,4]
[330102611,1718991077802,-500.0,0.00023824,4]
[330102612,1718991077812,-697.22,0.00023824,4]
[330102613,1718991077821,-500.0,0.00023824,4]
[330102614,1718991077830,-500.0,0.00023824,4]
[330102615,1718991077839,-714.72,0.00023824,4]
[330102616,1718991077848,-1897.24,0.00023824,4]
[330102617,1718991077857,-753.1,0.00023824,4]
[330102618,1718991077867,-500.0,0.00023824,4]
[330102619,1718991077877,-500.0,0.00023824,4]
[330102620,1718991077886,-1285.76,0.00023824,4]
[330102621,1718991077895,-500.0,0.00023824,4]
[330102622,1718991077904,-502.33,0.00023824,4]
[330102623,1718991077912,-500.0,0.00023824,4]
[330102624,1718991077922,-534.86,0.00023824,4]
[330102625,1718991077931,-500.0,0.00023824,4]
[330102626,1718991077940,-1041.21,0.00023824,4]
[330102627,1718991077950,-1219.33,0.00023824,4]
[330102628,1718991077959,-721.97,0.00023824,4]
[330102629,1718991077969,-500.0,0.00023824,4]
[330102630,1718991077978,-500.0,0.00023824,4]
[330102631,1718991077988,-500.0,0.00023824,4]
[330102632,1718991077998,-500.0,0.00023824,4]
[330102633,1718991078007,-773.32,0.00023824,4]
[330102634,1718991078019,-1205.31,0.00023824,4]
[330102635,1718991078028,-549.09,0.00023824,4]
[330102636,1718991078037,-715.25,0.00023824,4]
[330102637,1718991078047,-500.0,0.00023824,4]
[330102638,1718991078056,-500.0,0.00023824,4]
[330102639,1718991078066,-563.92,0.00023824,4]
[330102640,1718991078075,-500.0,0.00023824,4]
[330102641,1718991078084,-511.29,0.00023824,4]
[330102642,1718991078093,-500.0,0.00023824,4]
[330102643,1718991078102,-939.71,0.00023824,4]
[330102644,1718991078111,-1777.62,0.00023824,4]
[330102645,1718991078120,-500.0,0.00023824,4]
[330102646,1718991078129,-500.0,0.00023833,4]
[330102647,1718991078139,-778.08,0.00023833,4]
[330102648,1718991078148,-711.57,0.00023833,4]
[330102649,1718991078157,-500.0,0.00023833,4]
[330102650,1718991078166,-500.0,0.00023833,4]
[330102651,1718991078175,-500.0,0.00023833,4]
[330102652,1718991078185,-500.0,0.00023833,4]
[330102653,1718991078194,-811.37,0.00023833,4]
[330102654,1718991078203,-500.0,0.00023833,4]
[330102655,1718991078212,-500.0,0.00023833,4]
[330102656,1718991078221,-1988.28,0.00023833,4]
[330102657,1718991078231,-1545.69,0.00023833,4]
[330102658,1718991078240,-885.76,0.00023833,4]
[330102659,1718991078250,-846.41,0.00023833,4]
[330102660,1718991078259,-1105.64,0.00023833,4]
[330102661,1718991078272,-1441.35,0.00023833,4]
[330102662,1718991078281,-1115.8,0.00023833,4]
[330102663,1718991078289,-968.43,0.00023833,4]
[330102664,1718991078299,-2726.77,0.00023833,4]
[330102665,1718991078308,-500.0,0.00023833,4]
[330102666,1718991078317,-635.71,0.00023833,4]
[330102667,1718991078326,-500.0,0.00023833,4]
[330102668,1718991078335,-4273.14,0.00023833,4]
[330102669,1718991078344,-3752.39,0.00023833,4]
[330102670,1718991078354,-2270.24,0.00023833,4]
[330102671,1718991078363,-500.0,0.00023833,4]
[330102672,1718991078372,-12849.54,0.00023833,4]
[330102673,1718991078382,-3165.23,0.00023833,4]
[330102674,1718991078391,-847.05,0.00023833,4]
[330102675,1718991078399,-4761.65,0.00023833,4]
[330102676,1718991078408,-2414.13,0.00023833,4]
[330102677,1718991078418,-500.0,0.00023835,4]
[330102678,1718991078427,-500.0,0.00023835,4]
[330102679,1718991078437,-995.64,0.00023835,4]
[330102680,1718991078446,-655.96,0.00023835,4]
[330102681,1718991078456,-658.51,0.00023835,4]
[330102682,1718991078465,-531.81,0.00023835,4]
[330102683,1718991078474,-744.26,0.00023835,4]
[330102684,1718991078483,-500.0,0.00023835,4]
[330102685,1718991078494,-500.0,0.00023835,4]
[330102686,1718991078507,-742.09,0.00023835,4]
[330102687,1718991078518,-788.95,0.00023835,4]
[330102688,1718991078528,-500.0,0.00023835,4]
[330102689,1718991078539,-811.67,0.00023835,4]
[330102690,1718991078548,-576.54,0.00023835,4]
[330102691,1718991078557,-740.11,0.00023835,4]
[330102692,1718991078566,-500.0,0.00023835,4]
[330102693,1718991078575,-532.25,0.00023835,4]
[330102694,1718991078588,-1390.89,0.00023835,4]
[330102695,1718991078599,-621.86,0.00023835,4]
[330102696,1718991078608,-500.0,0.00023835,4]
[330102697,1718991078617,-568.12,0.00023835,4]
[330102698,1718991078626,-500.0,0.00023835,4]
[330102699,1718991078635,-500.0,0.00023835,4]
[330102700,1718991078645,-500.0,0.00023835,4]
[330102701,1718991078654,-729.92,0.00023835,4]
[330102702,1718991078663,-747.87,0.00023835,4]
[330102703,1718991078672,-500.0,0.00023835,4]
[330102704,1718991078683,-951.86,0.00023838,2]
[330102705,1718991078692,-435.61,0.000239,2]
[330102706,1718991078701,-30037.0164,0.00024009,2]
[330102707,1718991078710,-1254.7553,0.00024009,2]
[330102708,1718991078720,-809.02,0.00024088,4]
[330102709,1718991078731,-607.62,0.00024088,4]
[330102710,1718991078741,-1381.07,0.00024088,4]
[330102711,1718991078751,-1642.65,0.00024095,4]
[330102712,1718991078761,-500.0,0.00024095,4]
[330102713,1718991078772,-978.25,0.00024095,4]
[330102714,1718991078782,-2228.42,0.00024096,4]
[330102715,1718991078791,-2227.32,0.00024096,4]
[330102716,1718991078802,-1250.08,0.00024096,4]
[330102717,1718991078812,-1964.51,0.00024096,4]
[330102718,1718991078821,-5117.57,0.00024096,4]
[330102719,1718991078831,-4615.24,0.00024096,4]
[330102720,1718991078841,-6593.77,0.00024096,4]
[330102721,1718991078851,-1613.58,0.00024096,4]
[330102722,1718991078860,-4640.51,0.00024096,4]
[330102723,1718991078870,-2613.48,0.00024096,4]
[330102724,1718991078879,-1707.02,0.00024096,4]
[330102725,1718991078888,-6483.65,0.00024096,4]
[330102726,1718991078898,-503.57,0.00024096,4]
[330102727,1718991078908,-701.81,0.00024096,4]
[330102728,1718991078917,-2832.55,0.00024096,4]
[330102729,1718991078927,-2689.75,0.00024096,4]
[330102730,1718991078936,-2000.06,0.00024096,4]
[330102731,1718991078945,-3251.41,0.00024096,4]
[330102732,1718991078954,-2188.55,0.00024096,4]
[330102733,1718991078964,-2431.29,0.00024096,4]
[330102734,1718991078974,-7810.43,0.00024096,4]
[330102735,1718991078984,-500.0,0.00024096,4]
[330102736,1718991078993,-643.33,0.00024096,4]
[330102737,1718991079002,-3995.39,0.00024096,4]
[330102738,1718991079012,-3344.75,0.00024096,4]
[330102739,1718991079023,-9018.71,0.00024096,4]
[330102740,1718991079033,-5283.93,0.00024096,4]
[330102741,1718991079043,-2784.89,0.00024096,4]
[330102742,1718991079054,-1033.86,0.00024096,4]
[330102743,1718991079063,-1160.67,0.00024096,4]
[330102744,1718991079072,-2147.09,0.00024096,4]
[330102745,1718991079082,-2161.62,0.00024096,4]
[330102746,1718991079091,-32976.13,0.00024096,4]
[330102747,1718991079100,-3218.08,0.00024096,4]
[330102748,1718991079110,-500.0,0.00024097,4]
[330102749,1718991079119,-898.14,0.00024097,4]
[330102750,1718991079128,-500.0,0.00024097,4]
[330102751,1718991079138,-1030.59,0.00024097,4]
[330102752,1718991079147,-704.08,0.00024097,4]
[330102753,1718991079157,-500.0,0.00024097,4]
[330102754,1718991079167,-539.94,0.00024097,4]
[330102755,1718991079176,-500.0,0.00024097,4]
[330102756,1718991079186,-500.0,0.00024097,4]
[330102757,1718991079196,-1013.17,0.00024097,4]
[330102758,1718991079206,-500.0,0.00024097,4]
[330102759,1718991079214,-613.35,0.00024097,4]
[330102760,1718991079224,-833.51,0.00024097,4]
[330102761,1718991079233,-840.13,0.00024097,4]
[330102762,1718991079242,-500.0,0.00024097,4]
[330102763,1718991079251,-500.0,0.00024097,4]
[330102764,1718991079261,-500.0,0.00024097,4]
[330102765,1718991079275,-746.6,0.00024097,4]
[330102766,1718991079284,-532.54,0.00024097,4]
[330102767,1718991079293,-500.0,0.00024097,4]
[330102768,1718991079302,-337.97925754,0.00024097,4]
[330102769,1718991079311,-500.0,0.00024097,4]
[330102770,1718991079321,-500.0,0.00024097,4]
[330102771,1718991079330,-500.0,0.00024097,4]
[330102772,1718991079339,-500.0,0.00024097,4]
[330102773,1718991079349,-500.0,0.00024097,4]
[330102774,1718991079359,-500.0,0.00024097,4]
[330102775,1718991079369,-500.0,0.00024097,4]
[330102776,1718991079378,-500.0,0.00024097,4]
[330102777,1718991079388,-712.07,0.00024097,4]
[330102778,1718991079396,-1108.2,0.00024097,4]
[330102779,1718991079405,-500.0,0.00024097,4]
[330102780,1718991079415,-500.0,0.00024097,4]
[330102781,1718991079425,-511.98,0.00024097,4]
[330102782,1718991079435,-702.16,0.00024097,4]
[330102783,1718991079445,-500.0,0.00024097,4]
[330102784,1718991079455,-700.08,0.00024097,4]
[330102785,1718991079465,-500.0,0.00024097,4]
[330102786,1718991079474,-924.62,0.00024097,4]
[330102787,1718991079484,-500.0,0.00024097,4]
[330102788,1718991079494,-1537.14,0.00024097,4]
[330102789,1718991079503,-500.0,0.00024097,4]
[330102790,1718991079514,-1149.22,0.00024097,4]
[330102791,1718991079527,-495.87370369,0.00024097,4]
[330102792,1718991079536,-500.0,0.00024097,4]
[330102793,1718991079548,-708.0,0.00024097,4]
[330102794,1718991079559,-500.0,0.00024097,4]
[330102795,1718991079568,-500.0,0.00024097,4]
[330102796,1718991079578,-500.0,0.00024097,4]
[330102797,1718991079589,-500.0,0.00024097,4]
[330102798,1718991079600,-508.25,0.00024097,4]
[330102799,1718991079610,-579.98,0.00024097,4]
[330102800,1718991079724,-571.41,0.00024097,4]
[330102801,1718991079739,-642.8,0.00024097,4]
[330102802,1718991079748,-668.3,0.00024097,4]
[330102803,1718991079758,-500.0,0.00024097,4]
[330102804,1718991079768,-500.0,0.00024097,4]
[330102805,1718991079777,-638.78,0.00024097,4]
[330102806,1718991079787,-726.73,0.00024097,4]
[330102807,1718991079796,-731.34,0.00024097,4]
[330102808,1718991079805,-500.0,0.00024097,4]
[330102809,1718991079815,-934.13,0.00024097,4]
[330102810,1718991079824,-521.3,0.00024097,4]
[330102811,1718991079834,-386.50053934,0.00024097,4]
[330102812,1718991079844,-500.0,0.00024097,4]
[330102813,1718991079854,-522.48,0.00024097,4]
[330102814,1718991079863,-696.93,0.00024097,4]
[330102815,1718991079874,-837.37,0.00024097,4]
[330102816,1718991079884,-500.0,0.00024097,4]
[330102817,1718991079894,-1298.27,0.00024097,4]
[330102818,1718991079904,-676.04,0.00024097,4]
[330102819,1718991079914,-500.0,0.00024097,4]
[330102820,1718991079923,-500.0,0.00024097,4]
[330102821,1718991079933,-955.91,0.00024097,4]
[330102822,1718991079943,-565.69,0.00024097,4]
[330102823,1718991079953,-500.0,0.00024097,4]
[330102824,1718991079963,-500.0,0.00024097,4]
[330102825,1718991079972,-434.58,0.00024097,7]
[330102826,1718991079982,-500.0,0.00024097,4]
[330102827,1718991079992,-500.0,0.00024097,4]
[330102828,1718991080002,-1005.8,0.00024097,4]
[330102829,1718991080012,-1487.67,0.00024097,4]
[330102830,1718991080027,-500.0,0.00024097,4]
[330102831,1718991080037,-500.0,0.00024097,4]
[330102832,1718991080048,-500.0,0.00024097,4]
[330102833,1718991080059,-500.0,0.00024097,4]
[330102834,1718991080069,-500.0,0.00024097,4]
[330102835,1718991080079,-1302.06,0.00024097,4]
[330102836,1718991080090,-500.0,0.00024097,4]
[330102837,1718991080100,-500.0,0.00024097,4]
[330102838,1718991080110,-1105.45,0.00024097,4]
[330102839,1718991080120,-500.0,0.00024097,4]
[330102840,1718991080130,-500.0,0.00024097,4]
[330102841,1718991080140,-861.17,0.00024097,4]
[330102842,1718991080150,-500.0,0.00024097,4]
[330102843,1718991080160,-500.0,0.00024097,4]
[330102844,1718991080170,-500.0,0.00024097,4]
[330102845,1718991080180,-500.0,0.00024097,4]
[330102846,1718991080190,-500.0,0.00024097,4]
[330102847,1718991080200,-500.0,0.00024097,4]
[330102848,1718991080210,-525.71,0.00024097,4]
[330102849,1718991080220,-312.24,0.00024097,4]
[330102850,1718991080230,-500.0,0.00024097,4]
[330102851,1718991080240,-1605.24,0.00024097,4]
[330102852,1718991080249,-1109.1,0.00024097,4]
[330102853,1718991080259,-500.0,0.00024097,4]
[330102854,1718991080273,-500.0,0.00024097,4]
[330102855,1718991080282,-812.48,0.00024097,4]
[330102856,1718991080291,-500.0,0.00024097,4]
[330102857,1718991080300,-522.66,0.00024097,4]
[330102858,1718991080309,-500.0,0.00024097,4]
[330102859,1718991080318,-500.0,0.00024097,4]
[330102860,1718991080327,-2349.44,0.00024097,4]
[330102861,1718991080337,-542.96,0.00024097,4]
[330102862,1718991080346,-1118.35,0.00024097,4]
[330102863,1718991080356,-500.0,0.00024097,4]
[330102864,1718991080366,-500.0,0.00024097,4]
[330102865,1718991080375,-500.0,0.00024097,4]
[330102866,1718991080385,-500.0,0.00024097,4]
[330102867,1718991080396,-500.0,0.00024097,4]
[330102868,1718991080406,-1117.24,0.00024097,4]
[330102869,1718991080416,-1118.14,0.00024097,4]
[330102870,1718991080426,-1022.28,0.00024097,4]
[330102871,1718991080435,-500.0,0.00024097,4]
[330102872,1718991080445,-500.0,0.00024097,4]
[330102873,1718991080456,-634.94,0.00024097,4]
[330102874,1718991080466,-2155.83,0.00024097,4]
[330102875,1718991080476,-432.0215462,0.00024097,4]
[330102876,1718991080486,-1399.02,0.00024097,4]
[330102877,1718991080497,-1150.63,0.00024097,4]
[330102878,1718991080512,-947.93,0.00024097,4]
[330102879,1718991080524,-917.58,0.00024097,4]
[330102880,1718991080534,-225.75,0.00024097,4]
[330102881,1718991080546,-500.0,0.00024097,4]
[330102882,1718991080556,-800.03,0.00024097,4]
[330102883,1718991080566,-910.29,0.00024097,4]
[330102884,1718991080575,-871.28,0.00024097,4]
[330102885,1718991080587,-707.22,0.00024097,4]
[330102886,1718991080600,-721.45,0.00024097,4]
[330102887,1718991080610,-500.0,0.00024097,4]
[330102888,1718991080619,-2952.26,0.00024097,4]
[330102889,1718991080629,-1217.47,0.00024097,4]
[330102890,1718991080638,-609.35,0.00024097,4]
[330102891,1718991080647,-539.26,0.00024097,4]
[330102892,1718991080657,-1243.83,0.00024097,4]
[330102893,1718991080666,-910.08,0.00024097,4]
[330102894,1718991080676,-2065.38,0.00024097,4]
[330102895,1718991080685,-2397.68,0.00024097,4]
[330102896,1718991080696,-679.24,0.00024097,4]
[330102897,1718991080706,-1399.75,0.00024097,4]
[330102898,1718991080715,-700.96,0.00024097,4]
[330102899,1718991080725,-2171.32,0.00024097,4]
[330102900,1718991080735,-500.0,0.00024097,4]
[330102901,1718991080745,-639.07,0.00024097,4]
[330102902,1718991080755,-640.29,0.00024097,4]
[330102903,1718991080764,-2562.05,0.00024097,4]
[330102904,1718991080776,-229.48115764,0.00024097,4]
[330102905,1718991080786,-1478.18,0.00024097,4]
[330102906,1718991080795,-531.96,0.00024097,4]
[330102907,1718991080805,-500.0,0.00024097,4]
[330102908,1718991080814,-1171.77,0.00024097,4]
[330102909,1718991080823,-688.59,0.00024097,4]
[330102910,1718991080833,-500.0,0.00024097,4]
[330102911,1718991080843,-1272.01,0.00024097,4]
[330102912,1718991080853,-500.0,0.00024097,4]
[330102913,1718991080862,-2945.36,0.00024097,4]
[330102914,1718991080872,-500.0,0.00024097,4]
[330102915,1718991080881,-1467.19,0.00024097,4]
[330102916,1718991080891,-710.57,0.00024097,4]
[330102917,1718991080901,-661.54,0.00024097,4]
[330102918,1718991080910,-629.62,0.00024097,4]
[330102919,1718991080920,-597.08459465,0.00024097,4]
[330102920,1718991080930,-3697.34,0.00024097,4]
[330102921,1718991080940,-655.01,0.00024097,4]
[330102922,1718991080949,-500.0,0.00024097,4]
[330102923,1718991080959,-694.0,0.00024097,4]
[330102924,1718991080969,-500.0,0.00024097,4]
[330102925,1718991080978,-22390.58,0.00024097,4]
[330102926,1718991080988,-500.0,0.00024097,4]
[330102927,1718991080999,-2889.89,0.00024097,4]
[330102928,1718991081008,-1093.35,0.00024097,4]
[330102929,1718991081019,-500.0,0.00024097,4]
[330102930,1718991081029,-646.57666216,0.00024097,4]
[330102931,1718991081038,-500.0,0.00024097,4]
[330102932,1718991081049,-2343.28,0.00024097,4]
[330102933,1718991081058,-694.8,0.00024097,4]
[330102934,1718991081067,-1540.92,0.00024097,4]
[330102935,1718991081077,-735.45,0.00024097,4]
[330102936,1718991081088,-500.0,0.00024097,4]
[330102937,1718991081098,-1058.1,0.00024097,4]
[330102938,1718991081107,-1944.21,0.00024097,4]
[330102939,1718991081117,-1428.73,0.00024097,4]
[330102940,1718991081126,-500.0,0.00024097,4]
[330102941,1718991081135,-733.12,0.00024097,4]
[330102942,1718991081145,-500.0,0.00024097,4]
[330102943,1718991081154,-818.18,0.00024097,4]
[330102944,1718991081163,-500.0,0.00024097,4]
[330102945,1718991081172,-500.0,0.00024097,4]
[330102946,1718991081182,-849.22,0.00024097,4]
[330102947,1718991081191,-991.48,0.00024097,4]
[330102948,1718991081200,-500.0,0.00024097,4]
[330102949,1718991081209,-804.03,0.00024097,4]
[330102950,1718991081219,-1606.1,0.00024097,4]
[330102951,1718991081228,-994.93,0.00024097,4]
[330102952,1718991081238,-500.0,0.00024097,4]
[330102953,1718991081247,-500.0,0.00024097,4]
[330102954,1718991081256,-2297.03,0.00024097,4]
[330102955,1718991081266,-637.26,0.00024097,4]
[330102956,1718991081279,-718.56,0.00024097,4]
[330102957,1718991081288,-928.11,0.00024097,4]
[330102958,1718991081297,-1655.79,0.00024097,4]
[330102959,1718991081308,-1537.71,0.00024097,4]
[330102960,1718991081318,-604.61,0.00024097,4]
[330102961,1718991081327,-500.0,0.00024097,4]
[330102962,1718991081337,-150.93432525,0.00024097,4]
[330102963,1718991081347,-1222.36,0.00024097,4]
[330102964,1718991081356,-908.98,0.00024097,4]
[330102965,1718991081366,-668.91,0.00024097,4]
[330102966,1718991081377,-533.73,0.00024097,4]
[330102967,1718991081387,-590.93992182,0.00024097,4]
[330102968,1718991081397,-1075.97,0.00024097,4]
[330102969,1718991081406,-1495.2,0.00024097,4]
[330102970,1718991081416,-772.88,0.00024097,4]
[330102971,1718991081425,-1743.39,0.00024097,4]
[330102972,1718991081435,-1365.42,0.00024097,4]
[330102973,1718991081445,-1024.61,0.00024097,4]
[330102974,1718991081454,-500.0,0.00024097,4]
[330102975,1718991081464,-1677.55,0.00024097,4]
[330102976,1718991081474,-791.26,0.00024097,4]
[330102977,1718991081484,-588.12229123,0.00024097,4]
[330102978,1718991081494,-500.0,0.00024097,4]
[330102979,1718991081508,-1917.92,0.00024097,4]
[330102980,1718991081518,-821.89,0.00024097,4]
[330102981,1718991081529,-500.0,0.00024097,4]
[330102982,1718991081539,-2715.91,0.00024097,4]
[330102983,1718991081547,-2232.82,0.00024097,4]
[330102984,1718991081557,-641.92,0.00024097,4]
[330102985,1718991081566,-500.0,0.00024097,4]
[330102986,1718991081576,-595.1,0.00024097,4]
[330102987,1718991081586,-3946.49,0.00024097,4]
[330102988,1718991081597,-686.32,0.00024097,4]
[330102989,1718991081607,-500.0,0.00024097,4]
[330102990,1718991081616,-500.0,0.00024098,4]
[330102991,1718991081625,-500.0,0.00024098,4]
[330102992,1718991081634,-523.27,0.00024098,4]
[330102993,1718991081643,-500.0,0.00024098,4]
[330102994,1718991081652,-795.26,0.00024098,4]
[330102995,1718991081661,-706.08,0.00024098,4]
[330102996,1718991081670,-700.27,0.00024098,4]
[330102997,1718991081681,-500.0,0.00024098,4]
[330102998,1718991081690,-500.0,0.00024098,4]
[330102999,1718991081699,-500.0,0.00024098,4]
[330103000,1718991081708,-822.98,0.00024098,4]
[330103001,1718991081717,-510.29,0.00024098,4]
[330103002,1718991081726,-526.66,0.00024098,4]
[330103003,1718991081735,-573.85450315,0.00024098,4]
[330103004,1718991081744,-594.66,0.00024098,4]
[330103005,1718991081754,-500.0,0.00024098,4]
[330103006,1718991081763,-500.0,0.00024098,4]
[330103007,1718991081777,-160.54962517,0.00024098,4]
[330103008,1718991081786,-523.22,0.00024098,4]
[330103009,1718991081796,-603.76,0.00024098,4]
[330103010,1718991081805,-500.0,0.00024098,4]
[330103011,1718991081814,-500.0,0.00024098,4]
[330103012,1718991081823,-500.0,0.00024098,4]
[330103013,1718991081832,-500.0,0.00024098,4]
[330103014,1718991081842,-500.0,0.00024098,4]
[330103015,1718991081851,-500.0,0.00024098,4]
[330103016,1718991081860,-500.0,0.00024098,4]
[330103017,1718991081869,-753.57,0.00024098,4]
[330103018,1718991081879,-500.0,0.00024098,4]
[330103019,1718991081888,-854.73,0.00024098,4]
[330103020,1718991081898,-553.24,0.00024098,4]
[330103021,1718991082157,-500.0,0.00024098,4]
[330103022,1718991082167,-500.0,0.00024098,4]
[330103023,1718991082177,-508.41,0.00024098,4]
[330103024,1718991082186,-500.0,0.00024098,4]
[330103025,1718991082196,-500.0,0.00024098,4]
[330103026,1718991082205,-500.0,0.00024098,4]
[330103027,1718991082215,-500.0,0.00024098,4]
[330103028,1718991082225,-500.0,0.00024098,4]
[330103029,1718991082235,-772.45,0.00024098,4]
[330103030,1718991082244,-500.0,0.00024098,4]
[330103031,1718991082254,-500.0,0.00024098,4]
[330103032,1718991082263,-500.0,0.00024098,4]
[330103033,1718991082275,-500.0,0.00024098,4]
[330103034,1718991082284,-500.0,0.00024098,4]
[330103035,1718991082293,-500.0,0.00024098,4]
[330103036,1718991082303,-1474.02,0.00024098,4]
[330103037,1718991082313,-251.94,0.00024098,4]
[330103038,1718991082324,-1769.35,0.00024098,4]
[330103039,1718991082334,-623.3,0.00024098,4]
[330103040,1718991082344,-500.0,0.00024098,4]
[330103041,1718991082353,-1112.63,0.00024098,4]
[330103042,1718991082364,-569.56,0.00024098,4]
[330103043,1718991082373,-500.0,0.00024098,4]
[330103044,1718991082384,-500.0,0.00024098,4]
[330103045,1718991082394,-500.0,0.00024098,4]
[330103046,1718991082403,-500.0,0.00024098,4]
[330103047,1718991082413,-758.73,0.00024098,4]
[330103048,1718991082423,-594.05,0.00024098,4]
[330103049,1718991082434,-1059.07,0.00024098,4]
[330103050,1718991082443,-500.0,0.00024098,4]
[330103051,1718991082452,-500.0,0.00024098,4]
[330103052,1718991082461,-965.65,0.00024098,4]